bitfinex/quotes_ETHUSD_20250909
["timestamp","ask_amount","ask_price","bid_price","bid_amount"]
[1757381286337,2.87519141,4286.9,4286.8,0.002]
[1757381287630,2.04890001,4286.9,4286.8,0.002]
[1757381290526,4.38158796,4286.9,4286.8,0.002]
[1757381290712,2.04890001,4286.9,4286.8,0.002]
[1757381296715,0.79300001,4286.9,4286.8,2.63034237]
[1757381296921,0.79300001,4286.9,4286.8,2.33474237]
[1757381297123,1.55280001,4286.9,4286.8,2.33474237]
[1757381297318,1.09200001,4286.9,4286.8,2.33474237]
[1757381297733,0.79300001,4286.9,4286.8,2.33474237]
[1757381298613,0.79300001,4286.9,4286.8,0.002]
[1757381298908,0.79300001,4286.9,4286.8,2.33474237]
[1757381299322,1.09200001,4286.9,4286.8,2.33474237]
[1757381299544,1.09200001,4286.9,4286.8,0.002]
[1757381300356,2.04240001,4286.9,4286.8,0.002]
[1757381301018,4.37508796,4286.9,4286.8,0.002]
[1757381301366,5.44845486,4286.9,4286.8,0.002]
[1757381305165,9.35945486,4286.9,4286.8,0.002]
[1757381312548,10.75845486,4286.9,4286.8,0.002]
[1757381312783,13.97548104,4286.9,4286.8,0.002]
[1757381313312,3.0,4286.8,4285.9,0.002]
[1757381313598,9.6528146,4284.9,4284.6,0.002]
[1757381313798,9.11667675,4284.9,4284.6,0.002]
[1757381314128,10.02077675,4284.9,4284.6,0.002]
[1757381314478,6.7829,4284.9,4284.6,0.002]
[1757381314674,6.493,4284.9,4284.6,0.002]
[1757381314880,6.493,4284.9,4284.8,0.3323]
[1757381315425,6.493,4284.9,4284.8,2.9329598]
[1757381315580,3.911,4285.2,4285.1,2.33366782]
[1757381315781,3.911,4285.2,4285.1,0.3073]
[1757381315995,3.911,4285.2,4285.1,0.98044508]
[1757381316295,4.6534,4285.2,4284.8,3.29182859]
[1757381316483,1.2445,4285.1,4284.8,0.025]
[1757381316687,0.792,4284.9,4284.8,0.025]
[1757381317976,0.792,4284.9,4284.8,0.3323]
[1757381318439,0.792,4284.9,4284.8,0.025]
[1757381319489,0.792,4284.9,4284.8,0.3343]
[1757381319903,0.792,4284.9,4284.8,2.66813121]
[1757381320386,3.912,4285.0,4284.9,2.33377675]
[1757381320539,3.912,4285.0,4284.9,3.11287675]
[1757381321536,4.704,4285.0,4284.9,0.3073]
[1757381321713,0.792,4284.9,4284.8,0.027]
[1757381323456,0.908,4284.9,4284.8,0.027]
[1757381323598,0.908,4284.9,4284.8,0.3343]
[1757381323799,0.792,4284.9,4284.8,3.75708306]
[1757381323999,0.792,4284.9,4284.8,0.60131354]
[1757381324816,0.792,4284.9,4284.8,0.3343]
[1757381325640,0.792,4284.9,4284.8,2.66813121]
[1757381326142,0.792,4284.9,4284.8,0.3343]
[1757381327164,0.792,4284.9,4284.8,2.66813121]
[1757381327307,0.792,4284.9,4284.8,3.13993121]
[1757381327699,0.792,4284.9,4284.8,3.73179665]
[1757381328138,0.792,4284.9,4284.8,4.05859665]
[1757381329027,0.792,4284.9,4284.8,3.25999665]
[1757381329854,1.791,4285.8,4284.8,1.72476544]
[1757381330142,3.918,4285.7,4285.6,2.33339555]
[1757381330326,3.918,4285.7,4285.6,2.64069555]
[1757381330734,4.71,4285.7,4285.6,2.64069555]
[1757381332548,4.034,4286.0,4285.9,2.33323222]
[1757381332849,3.917,4286.2,4286.1,2.33312335]
[1757381333033,3.917,4286.2,4286.1,2.64042335]
[1757381333424,3.917,4286.4,4286.1,2.75638922]
[1757381333734,0.025,4286.8,4286.7,2.33279679]
[1757381334132,0.025,4286.8,4286.7,3.11189679]
[1757381334905,0.025,4286.8,4286.7,3.43869679]
[1757381335116,0.025,4286.8,4286.7,3.11189679]
[1757381335330,0.025,4286.8,4286.7,4.34817444]
[1757381335745,0.025,4286.8,4286.7,1.54357765]
[1757381335962,0.025,4286.8,4286.7,2.33279679]
[1757381336682,0.025,4286.8,4286.7,5.64009679]
[1757381336831,0.025,4286.8,4286.7,6.43869679]
[1757381338315,0.025,4286.8,4286.7,6.11189679]
[1757381338488,0.025,4286.8,4286.7,10.35669679]
[1757381338489,1e-08,4286.8,4286.7,10.35669679]
[1757381338647,1e-08,4286.8,4286.7,11.62565584]
[1757381340664,1e-08,4286.8,4286.7,41.62565584]
[1757381342398,1e-08,4286.8,4286.7,41.7189541]
[1757381342708,1e-08,4286.8,4286.7,37.0023541]
[1757381342885,1e-08,4286.8,4286.7,10.9253541]
[1757381343059,1e-08,4286.8,4286.7,6.6950541]
[1757381343263,1e-08,4286.8,4286.7,10.6170541]
[1757381343492,0.30950001,4286.8,4286.7,8.28425731]
[1757381343695,1.26520001,4286.8,4286.7,7.13229826]
[1757381343860,2.05720001,4286.8,4286.7,3.09329826]
[1757381344065,1.26520001,4286.8,4286.7,3.09329826]
[1757381344407,0.77830001,4286.8,4286.7,3.0]
[1757381344590,0.77830001,4286.8,4286.7,5.33279679]
[1757381344974,0.30950001,4286.8,4286.7,5.33279679]
[1757381346385,1e-08,4286.8,4286.7,5.33279679]
[1757381346777,1e-08,4286.8,4286.7,6.79926588]
[1757381346989,1e-08,4286.8,4286.7,10.72226588]
[1757381348042,1e-08,4286.8,4286.7,11.52346588]
[1757381348222,1e-08,4286.8,4286.7,11.19666588]
[1757381348577,1e-08,4286.8,4286.7,10.72226588]
[1757381349536,1.26520001,4286.8,4286.7,3.0]
[1757381349677,1.26520001,4286.8,4286.7,6.925]
[1757381349876,1.26520001,4286.8,4286.7,9.25779679]
[1757381350824,0.77830001,4286.8,4286.7,9.25779679]
[1757381351529,1e-08,4286.8,4286.7,10.4168666]
[1757381352020,1e-08,4286.8,4286.7,6.4918666]
[1757381352225,0.77830001,4286.8,4286.7,9.25779679]
[1757381352523,1.26520001,4286.8,4286.7,5.33279679]
[1757381352728,1.26520001,4286.8,4286.7,9.25979679]
[1757381352885,1.26520001,4286.8,4286.7,5.33279679]
[1757381353111,1.26520001,4286.8,4286.7,6.927]
[1757381353802,0.792,4286.7,4286.5,3.927]
[1757381354007,1.2652,4286.6,4286.4,3.927]
[1757381354351,0.9557,4286.5,4286.3,3.927]
[1757381354515,1.2652,4286.4,4286.3,3.0]
[1757381354918,1.2652,4286.4,4286.3,5.33301448]
[1757381355120,0.00100001,4286.8,4286.3,5.33296796]
[1757381355433,0.4688,4286.7,4286.5,2.33286629]
[1757381355668,0.48790001,4286.8,4286.3,5.33296796]
[1757381355669,0.9557,4286.6,4286.3,5.33300091]
[1757381355829,0.9557,4286.5,4286.3,5.33300091]
[1757381356015,0.00100001,4286.8,4286.3,3.0]
[1757381356218,1.2652,4286.4,4286.3,5.33296301]
[1757381356603,0.7783,4286.4,4286.3,5.33296301]
[1757381358747,1.2652,4286.4,4286.3,3.0]
[1757381359426,1.2652,4286.4,4286.2,4.045]
[1757381359427,0.792,4286.3,4286.2,0.002]
[1757381359630,1.2789,4286.3,4286.2,0.002]
[1757381359830,2.0572,4286.3,4286.2,0.002]
[1757381360612,2.0572,4286.3,4286.2,2.33506891]
[1757381360816,0.116,4286.5,4286.4,2.33296005]
[1757381361156,0.792,4286.6,4286.4,2.33296005]
[1757381361453,1.1015,4286.5,4286.4,2.33296005]
[1757381362359,0.79300001,4286.8,4286.5,2.33288166]
[1757381362556,0.792,4286.6,4286.5,2.33288166]
[1757381363053,1.5703,4286.6,4286.4,2.33295134]
[1757381363256,1.5703,4286.6,4286.2,6.37505901]
[1757381363562,1.1015,4286.6,4286.5,2.33290563]
[1757381364091,1.1015,4286.6,4286.2,6.37505901]
[1757381364356,0.4688,4286.5,4286.4,2.33294131]
[1757381364582,1.2652,4286.5,4286.4,2.33294131]
[1757381365190,0.79300001,4286.8,4286.4,2.33294131]
[1757381365457,0.3095,4286.5,4286.4,2.33294131]
[1757381365678,0.792,4286.6,4286.5,2.33290563]
[1757381366041,0.3095,4286.5,4286.4,2.33295893]
[1757381366247,0.79300001,4286.8,4286.7,2.33279679]
[1757381366765,2.05820001,4286.8,4286.4,2.33292533]
[1757381367063,0.792,4286.6,4286.5,2.33290563]
[1757381367222,0.79300001,4286.8,4286.7,2.33279679]
[1757381367556,1.2608,4286.7,4286.6,2.33284059]
[1757381367719,1.5703,4286.7,4286.6,2.33284059]
[1757381367921,0.792,4286.6,4286.5,2.33289553]
[1757381368373,1.5703,4286.6,4286.2,4.042]
[1757381368517,1.5884,4286.6,4286.2,4.042]
[1757381368719,0.4688,4286.5,4286.2,4.042]
[1757381368952,0.9557,4286.5,4286.3,2.33301448]
[1757381369285,0.4688,4286.4,4286.3,2.33301448]
[1757381369419,0.7783,4286.4,4286.3,2.33301448]
[1757381369761,0.4688,4286.7,4286.5,2.33286568]
[1757381369962,0.3095,4286.6,4286.5,2.33286568]
[1757381370257,0.79300001,4286.8,4286.5,2.33286568]
[1757381370258,0.79300001,4286.8,4286.7,2.33279679]
[1757381371772,0.00100001,4286.8,4286.7,5.63219679]
[1757381371985,0.00100001,4286.8,4286.7,10.00559679]
[1757381372272,0.00100001,4286.8,4286.7,11.14821624]
[1757381372619,0.00100001,4286.8,4286.7,10.82141624]
[1757381372826,0.00100001,4286.8,4286.7,12.22392323]
[1757381373254,0.00100001,4286.8,4286.7,12.55072323]
[1757381373725,0.00100001,4286.8,4286.7,42.55072323]
[1757381377258,0.001,4287.1,4286.7,42.55072323]
[1757381377259,1e-08,4287.1,4287.0,2.33263354]
[1757381377460,1e-08,4287.1,4287.0,9.16440665]
[1757381377666,0.31050001,4287.1,4287.0,14.88457583]
[1757381377889,1.22800001,4287.1,4287.0,0.116]
[1757381378230,1.22800001,4287.1,4286.7,0.116]
[1757381378445,1.22800001,4287.1,4286.8,2.33273888]
[1757381378736,0.9175,4287.0,4286.8,2.33273888]
[1757381379041,1.228,4286.9,4286.8,2.33273888]
[1757381379933,0.7628,4286.9,4286.8,6.20419605]
[1757381380377,1e-08,4287.1,4287.0,2.33263354]
[1757381380881,0.76280001,4287.1,4287.0,2.33263354]
[1757381381084,1e-08,4287.1,4287.0,2.33263354]
[1757381381306,1e-08,4287.1,4287.0,5.77135987]
[1757381381580,0.76280001,4287.1,4287.0,10.67238913]
[1757381381803,1e-08,4287.1,4287.0,10.97178913]
[1757381382276,1e-08,4287.1,4287.0,10.67238913]
[1757381382481,1e-08,4287.1,4287.0,11.37217022]
[1757381383336,1e-08,4287.1,4287.0,11.67157022]
[1757381383595,1e-08,4287.1,4287.0,11.37217022]
[1757381383757,1e-08,4287.1,4287.0,11.67157022]
[1757381384143,1e-08,4287.1,4287.0,11.37217022]
[1757381384341,0.76280001,4287.1,4287.0,10.67238913]
[1757381384578,1.22800001,4287.1,4287.0,9.37963354]
[1757381384781,0.31050001,4287.1,4287.0,9.37963354]
[1757381384958,1e-08,4287.1,4287.0,9.67903354]
[1757381386108,1e-08,4287.1,4287.0,9.37963354]
[1757381386275,1e-08,4287.1,4287.0,9.67903354]
[1757381386480,1e-08,4287.1,4287.0,10.95019363]
[1757381386675,1e-08,4287.1,4287.0,10.65079363]
[1757381387114,1e-08,4287.1,4287.0,10.95019363]
[1757381388621,1e-08,4287.1,4287.0,11.44139363]
[1757381391466,0.76280001,4287.1,4287.0,11.13999363]
[1757381391810,0.76280001,4287.1,4287.0,10.64879363]
[1757381392466,1e-08,4287.1,4287.0,10.64879363]
[1757381392607,1e-08,4287.1,4287.0,10.94819363]
[1757381395147,1e-08,4287.1,4287.0,10.95019363]
[1757381398335,1e-08,4287.1,4287.0,12.62236281]
[1757381398537,1e-08,4287.1,4287.0,11.40559363]
[1757381398708,1e-08,4287.1,4287.0,41.99799505]
[1757381399052,0.001,4287.4,4287.3,2.33247031]
[1757381399349,0.001,4287.4,4287.3,13.43037828]
[1757381399521,0.001,4287.4,4287.3,13.72977828]
[1757381400724,0.7638,4287.4,4287.3,9.50637828]
[1757381400957,0.3115,4287.4,4287.3,13.43037828]
[1757381401257,0.001,4287.4,4287.3,13.43037828]
[1757381401754,0.001,4287.4,4287.3,13.73327828]
[1757381402980,1.2449,4287.4,4287.3,13.42937828]
[1757381403119,1.2449,4287.4,4287.3,6.39100921]
[1757381403470,1.2449,4287.4,4287.3,9.37247031]
[1757381404535,1.2449,4287.4,4287.3,9.37147031]
[1757381405071,1.2449,4287.4,4287.3,5.44847031]
[1757381405709,0.001,4287.4,4287.3,5.75137031]
[1757381406089,0.001,4287.4,4287.3,7.11972736]
[1757381407758,0.001,4287.4,4287.3,11.04272736]
[1757381409847,0.3115,4287.4,4287.3,10.73982736]
[1757381410047,1.2449,4287.4,4287.3,2.44847031]
[1757381410267,1.2449,4287.4,4287.3,6.37047031]
[1757381410667,1.2449,4287.4,4287.3,9.37047031]
[1757381411482,1.2449,4287.4,4287.3,5.44847031]
[1757381413784,2.0369,4287.4,4287.3,2.44847031]
[1757381413971,2.24069,4287.4,4287.0,0.002]
[1757381414166,0.792,4287.3,4287.2,2.33251993]
[1757381414372,1.7254,4287.3,4287.2,2.33251993]
[1757381414715,2.0359,4287.3,4287.2,2.33251993]
[1757381414918,2.0359,4287.3,4287.1,0.002]
[1757381415064,0.908,4287.2,4287.1,0.002]
[1757381415487,2.1519,4287.2,4287.1,0.002]
[1757381416492,4.48442472,4287.2,4287.1,0.002]
[1757381421197,2.1519,4287.2,4287.1,0.002]
[1757381422336,1.6732,4287.2,4287.1,0.002]
[1757381422950,2.1519,4287.2,4287.1,0.002]
[1757381423311,4.48442472,4287.2,4287.1,0.002]
[1757381423515,5.50396122,4287.2,4287.1,0.002]
[1757381424071,3.1714365,4287.2,4287.1,0.002]
[1757381424216,2.1519,4287.2,4287.1,0.002]
[1757381426425,4.48442472,4287.2,4287.1,0.002]
[1757381427941,2.1519,4287.2,4287.1,0.002]
[1757381430661,4.48442472,4287.2,4287.1,0.002]
[1757381432507,11.03554831,4287.2,4287.1,0.002]
[1757381432805,6.39332144,4287.2,4287.1,0.002]
[1757381433363,6.39332144,4287.2,4286.6,0.002]
[1757381433364,3.12479679,4286.7,4286.6,0.002]
[1757381433599,13.59092038,4286.7,4286.6,0.002]
[1757381433780,3.12485121,4286.6,4286.5,1e-08]
[1757381433974,6.26419675,4286.6,4286.5,1e-08]
[1757381434181,9.44601837,4286.6,4286.5,1e-08]
[1757381434608,9.62168166,4286.6,4286.5,1e-08]
[1757381437071,9.44601837,4286.6,4286.5,1e-08]
[1757381445309,13.36201837,4286.6,4286.5,1e-08]
[1757381447369,13.36201837,4286.6,4286.5,0.31380001]
[1757381447370,6.36485121,4286.6,4286.5,0.31380001]
[1757381447570,3.916,4286.6,4286.5,0.31380001]
[1757381447807,3.916,4286.6,4286.5,1.11510001]
[1757381448007,3.916,4286.6,4286.5,3.44800564]
[1757381448175,3.916,4286.6,4286.5,1.11510001]
[1757381448377,3.916,4286.6,4286.5,0.31380001]
[1757381449471,7.77155121,4286.6,4286.5,1e-08]
[1757381450010,4.708,4286.6,4286.5,1e-08]
[1757381450513,7.04185121,4286.6,4286.5,1e-08]
[1757381450919,7.33445121,4286.6,4286.5,1e-08]
[1757381451937,9.2804988,4286.6,4286.5,1e-08]
[1757381453740,4.709,4286.6,4286.5,0.31380001]
[1757381454041,4.708,4286.6,4286.5,0.31380001]
[1757381454340,3.916,4286.6,4286.5,1.11510001]
[1757381454547,3.916,4286.6,4286.5,3.44800564]
[1757381454711,3.916,4286.6,4286.5,4.02650545]
[1757381456866,3.916,4286.6,4286.5,1.36679982]
[1757381457363,3.916,4286.6,4286.5,4.02650545]
[1757381459148,3.916,4286.6,4286.5,7.02650545]
[1757381460266,4.708,4286.6,4286.5,3.89229982]
[1757381460473,5.4387,4286.6,4286.5,1e-08]
[1757381460669,5.5547,4286.6,4286.5,1e-08]
[1757381461157,8.22375121,4286.6,4286.5,1e-08]
[1757381461355,5.0989,4286.6,4286.3,0.002]
[1757381461572,3.12496005,4286.4,4286.3,0.002]
[1757381462077,4.36030559,4286.4,4286.3,0.002]
[1757381463115,1.57214554,4286.4,4286.3,0.002]
[1757381463415,5.4574,4286.4,4286.3,0.002]
[1757381463577,8.25296005,4286.4,4286.3,0.002]
[1757381463987,9.49073748,4286.4,4286.3,0.002]
[1757381467345,0.001,4286.6,4286.3,0.2927]
[1757381467512,0.001,4286.6,4286.3,1.1089]
[1757381467713,0.001,4286.6,4286.5,2.33290563]
[1757381468114,0.001,4286.6,4286.5,6.43980563]
[1757381468441,0.001,4286.6,4286.5,7.61748585]
[1757381470847,0.001,4286.6,4286.5,9.29165165]
[1757381471048,0.001,4286.6,4286.5,39.40765165]
[1757381471209,0.001,4286.6,4286.5,37.73348585]
[1757381471545,0.001,4286.6,4286.5,7.73348585]
[1757381472633,0.001,4286.6,4286.5,37.73348585]
[1757381473831,0.001,4286.6,4286.5,7.73348585]
[1757381477555,0.001,4286.6,4286.5,37.73348585]
[1757381477854,0.001,4286.6,4286.5,39.40765165]
[1757381478543,0.001,4286.6,4286.5,43.32665165]
[1757381479829,0.001,4286.6,4286.5,43.41995144]
[1757381480955,0.001,4286.6,4286.5,41.74578564]
[1757381481157,0.001,4286.6,4286.5,43.41306839]
[1757381484349,0.001,4286.6,4286.5,41.74578564]
[1757381484551,1e-08,4287.2,4287.1,2.33257913]
[1757381484758,1e-08,4287.2,4287.1,11.27183704]
[1757381484951,1e-08,4287.2,4287.1,12.37873704]
[1757381485480,0.29420001,4287.2,4287.1,7.35583704]
[1757381485635,1.21200001,4287.2,4287.1,11.27183704]
[1757381486341,1.21200001,4287.2,4287.1,8.27183704]
[1757381486978,1.21200001,4287.2,4287.1,11.27183704]
[1757381488299,1.21200001,4287.2,4287.1,9.48183704]
[1757381490181,1.21200001,4287.2,4287.1,9.47983704]
[1757381491008,2.00400001,4287.2,4287.1,3.0]
[1757381491596,0.792,4287.1,4286.5,0.002]
[1757381491813,0.792,4287.1,4286.6,2.33282883]
[1757381491985,0.3167,4286.7,4286.6,2.33282883]
[1757381492187,1.2094,4286.7,4286.6,2.33282883]
[1757381492419,0.792,4286.6,4286.5,0.002]
[1757381492906,2.0014,4286.6,4286.5,0.002]
[1757381493859,2.0014,4286.6,4286.5,2.33490563]
[1757381494205,0.7716,4286.6,4286.5,2.33490563]
[1757381494405,0.4549,4287.1,4286.5,7.98869122]
[1757381494572,0.4549,4287.1,4287.0,2.44863354]
[1757381495159,1.2094,4287.1,4287.0,2.44863354]
[1757381495503,2.0014,4287.1,4287.0,0.116]
[1757381495709,0.792,4287.0,4286.8,2.33269514]
[1757381495909,0.792,4287.0,4286.9,2.33268795]
[1757381496087,2.0014,4287.0,4286.9,2.33268795]
[1757381496488,2.0014,4287.0,4286.7,2.44874701]
[1757381496722,2.0014,4287.0,4286.9,2.33268795]
[1757381496723,1.1087,4287.0,4286.9,2.33268795]
[1757381497439,2.0014,4287.0,4286.9,2.33268795]
[1757381498022,2.0014,4287.0,4286.7,0.116]
[1757381498218,1.1087,4287.0,4286.9,2.33268795]
[1757381498906,2.0014,4287.0,4286.9,2.33268795]
[1757381500043,2.0014,4287.0,4286.7,2.44874666]
[1757381500244,1.1087,4287.0,4286.7,0.116]
[1757381500414,0.8927,4286.9,4286.8,2.33274237]
[1757381500622,1.2094,4286.9,4286.8,2.33274237]
[1757381502530,0.792,4286.8,4286.5,0.002]
[1757381502711,0.792,4286.6,4286.5,0.002]
[1757381502914,1.1087,4286.6,4286.5,0.002]
[1757381503118,2.0014,4286.6,4286.5,0.002]
[1757381503747,2.0014,4286.6,4286.5,2.33490563]
[1757381504061,0.3167,4286.6,4286.5,2.33490563]
[1757381504273,0.792,4286.9,4286.6,3.0]
[1757381504474,0.792,4286.9,4286.8,2.33274237]
[1757381504631,0.792,4287.0,4286.8,2.33274237]
[1757381504823,0.3167,4286.9,4286.8,2.33274237]
[1757381505024,0.7545,4286.9,4286.8,2.33274237]
[1757381505225,2.0014,4286.9,4286.8,2.33274237]
[1757381506227,0.792,4286.8,4286.5,0.002]
[1757381506670,1.2469,4286.8,4286.7,2.33279679]
[1757381506850,1.5636,4286.8,4286.7,2.33279679]
[1757381507274,2.0014,4286.8,4286.7,2.33279679]
[1757381508182,2.0014,4286.8,4286.5,0.002]
[1757381508338,2.21314,4286.8,4286.5,0.002]
[1757381508537,0.792,4286.6,4286.5,0.002]
[1757381508951,2.0014,4286.6,4286.5,0.002]
[1757381511282,0.792,4286.6,4286.5,2.64040563]
[1757381511578,0.792,4286.9,4286.5,2.64040563]
[1757381511788,1.2298,4286.9,4286.5,2.64040563]
[1757381511969,0.4378,4286.8,4286.7,2.33274939]
[1757381512179,0.7545,4286.8,4286.7,2.33274939]
[1757381514386,0.7545,4286.8,4286.5,2.33486156]
[1757381514540,0.7545,4286.8,4286.5,0.002]
[1757381514882,0.7545,4286.8,4286.7,2.33279679]
[1757381515375,0.7545,4286.8,4286.5,2.33489823]
[1757381515559,0.7545,4286.8,4286.5,0.002]
[1757381515560,0.3167,4286.8,4286.5,0.002]
[1757381515877,0.4378,4286.8,4286.7,2.33279679]
[1757381516081,0.7545,4286.8,4286.5,0.002]
[1757381516279,0.792,4286.7,4286.6,2.33279787]
[1757381516733,0.792,4286.9,4286.8,2.33274237]
[1757381517184,0.792,4286.9,4286.8,2.63824237]
[1757381517342,0.792,4286.9,4286.8,6.13787919]
[1757381518677,1e-08,4287.2,4287.1,2.33257913]
[1757381518972,1e-08,4287.2,4287.1,5.44857913]
[1757381519193,1e-08,4287.2,4287.1,5.75407913]
[1757381519786,1e-08,4287.2,4287.1,7.4292842]
[1757381519990,1e-08,4287.2,4287.1,12.84176966]
[1757381520202,1e-08,4287.2,4287.1,13.64006966]
[1757381520336,1e-08,4287.2,4287.1,12.84176966]
[1757381520531,1e-08,4287.2,4287.1,12.53626966]
[1757381520770,0.31670001,4287.2,4287.1,6.94606459]
[1757381521707,1e-08,4287.2,4287.1,6.94606459]
[1757381522177,1e-08,4287.2,4287.1,7.25986459]
[1757381522952,0.792,4287.1,4286.9,1.67520507]
[1757381523153,0.792,4286.9,4286.6,0.002]
[1757381523340,0.792,4286.9,4286.7,2.3327835]
[1757381523552,1.2247,4286.8,4286.7,2.3327835]
[1757381523747,1.2247,4286.8,4286.6,0.002]
[1757381524106,1.2473,4286.7,4286.6,0.002]
[1757381524281,1.7182,4286.7,4286.6,2.33485121]
[1757381524445,2.0167,4286.7,4286.6,2.33485121]
[1757381524653,2.0167,4286.7,4286.6,0.002]
[1757381528882,8.46516679,4286.7,4286.6,0.002]
[1757381537023,10.92016679,4286.7,4286.6,0.002]
[1757381537196,8.46516679,4286.7,4286.6,0.002]
[1757381540841,3.24085121,4286.6,4286.5,0.002]
[1757381541153,3.26419675,4286.6,4286.5,0.002]
[1757381541467,6.13480476,4286.6,4286.5,0.002]
[1757381541668,6.11145922,4286.6,4286.5,0.002]
[1757381542025,13.23145922,4286.6,4286.5,0.002]
[1757381545144,11.51325922,4286.6,4286.5,0.002]
[1757381545446,11.21475922,4286.6,4286.5,0.002]
[1757381545648,12.00675922,4286.6,4286.5,0.002]
[1757381545882,12.77615922,4286.6,4286.5,0.002]
[1757381546938,14.17515922,4286.6,4286.5,0.002]
[1757381547165,15.92275922,4286.6,4286.5,0.002]
[1757381547338,16.69215922,4286.6,4286.5,0.002]
[1757381547728,17.14745922,4286.6,4286.5,0.002]
[1757381549993,16.69215922,4286.6,4286.5,0.002]
[1757381551116,16.22125922,4286.6,4286.5,0.002]
[1757381551862,17.14325922,4286.6,4286.5,0.002]
[1757381555182,20.14325922,4286.6,4286.5,0.002]
[1757381556017,20.35985504,4286.6,4286.5,0.002]
[1757381556389,20.14325922,4286.6,4286.5,0.002]
[1757381559680,12.76725922,4286.6,4286.5,0.002]
[1757381559846,15.92175922,4286.6,4286.5,0.3036]
[1757381562125,14.27585121,4286.6,4286.5,0.3036]
[1757381562324,4.031,4286.6,4286.5,1.12]
[1757381562772,4.823,4286.6,4286.5,1.12]
[1757381563264,7.15585121,4286.6,4286.5,1.12]
[1757381563643,7.15585121,4286.6,4286.5,0.3036]
[1757381565520,4.823,4286.6,4286.5,1.12]
[1757381566472,7.15585121,4286.6,4286.5,0.3036]
[1757381566950,4.823,4286.6,4286.5,0.6304]
[1757381567181,4.823,4286.6,4286.5,1.12]
[1757381567529,4.707,4286.6,4286.5,1.12]
[1757381568629,1e-08,4287.2,4286.5,1.46570224]
[1757381568858,1.725,4287.1,4287.0,2.33262563]
[1757381569064,1.725,4287.1,4287.0,6.45062563]
[1757381569261,1e-08,4287.2,4287.1,5.33257913]
[1757381569457,1e-08,4287.2,4287.1,7.68817287]
[1757381569642,1e-08,4287.2,4287.1,7.98977287]
[1757381574966,1e-08,4287.2,4287.1,8.6895311]
[1757381577587,1e-08,4287.2,4287.1,8.3627311]
[1757381577792,1e-08,4287.2,4287.1,7.8731311]
[1757381578757,1e-08,4287.2,4287.1,8.1999311]
[1757381579074,1e-08,4287.2,4287.1,8.6895311]
[1757381579703,1e-08,4287.2,4287.1,12.6025311]
[1757381580475,1e-08,4287.2,4287.1,8.6895311]
[1757381580676,1e-08,4287.2,4287.1,12.6025311]
[1757381582252,1e-08,4287.2,4287.1,8.6895311]
[1757381582456,1e-08,4287.2,4287.1,11.7861311]
[1757381583479,1e-08,4287.2,4287.1,7.5715311]
[1757381583683,1e-08,4287.2,4287.1,11.4845311]
[1757381583861,1e-08,4287.2,4287.1,11.7826311]
[1757381584756,1e-08,4287.2,4287.1,2.23895197]
[1757381584961,0.792,4287.1,4286.7,3.0]
[1757381585304,1.2374,4287.1,4287.0,0.09331372]
[1757381585687,2.0096,4287.1,4286.5,2.33488708]
[1757381585895,0.792,4286.9,4286.5,0.002]
[1757381586107,0.116,4286.7,4286.5,0.002]
[1757381586311,1.11324554,4286.6,4286.5,0.002]
[1757381586512,2.0096,4286.6,4286.5,0.002]
[1757381587054,1.0899,4286.6,4286.5,0.002]
[1757381587352,1.5353,4286.6,4286.5,0.002]
[1757381588097,0.792,4286.6,4286.5,0.002]
[1757381588328,3.913,4287.1,4286.6,3.0]
[1757381588529,0.792,4287.0,4286.7,2.96280078]
[1757381588730,0.792,4287.0,4286.8,2.33271975]
[1757381589248,0.792,4287.0,4286.9,5.63078795]
[1757381589413,0.792,4287.0,4286.9,3.2981]
[1757381589765,0.792,4287.0,4286.9,3.0]
[1757381590092,0.792,4287.0,4286.9,5.33268795]
[1757381590538,0.792,4287.0,4286.9,3.0]
[1757381590841,2.0096,4287.0,4286.9,3.0]
[1757381591139,2.78086,4287.0,4286.5,0.002]
[1757381591340,0.116,4286.6,4286.5,0.002]
[1757381591512,4.84434554,4286.6,4286.5,0.002]
[1757381591691,8.37145121,4286.6,4286.5,0.002]
[1757381591893,9.44186605,4286.6,4286.5,0.002]
[1757381593926,7.10901484,4286.6,4286.5,0.002]
[1757381594126,6.0386,4286.6,4286.5,0.002]
[1757381594339,8.37145121,4286.6,4286.5,0.002]
[1757381598067,6.0386,4286.6,4286.5,0.002]
[1757381599916,8.37145121,4286.6,4286.5,0.002]
[1757381600118,6.0386,4286.6,4286.5,0.002]
[1757381600418,8.37145121,4286.6,4286.5,0.002]
[1757381600848,6.0386,4286.6,4286.5,0.002]
[1757381601151,8.37145121,4286.6,4286.5,0.002]
[1757381601617,9.44186568,4286.6,4286.5,0.002]
[1757381601809,7.10901447,4286.6,4286.5,0.002]
[1757381603947,6.66361447,4286.6,4286.5,0.002]
[1757381604147,1.79000001,4287.2,4286.8,2.3326989]
[1757381604461,3.913,4287.1,4286.9,2.33268795]
[1757381604670,3.913,4287.1,4287.0,0.2981]
[1757381605022,3.913,4287.1,4286.7,2.33274625]
[1757381605252,3.913,4287.1,4286.7,3.14152488]
[1757381605437,3.913,4287.1,4286.7,0.80877863]
[1757381605638,0.792,4287.0,4286.6,2.33284963]
[1757381605838,0.792,4286.8,4286.7,2.33278766]
[1757381606039,0.792,4286.8,4286.7,6.43589679]
[1757381606273,1e-08,4287.2,4286.8,3.0]
[1757381606478,1e-08,4287.2,4287.1,2.63067913]
[1757381606688,1e-08,4287.2,4287.1,6.27424704]
[1757381607099,1e-08,4287.2,4287.1,7.07924704]
[1757381607424,0.001,4287.5,4287.2,3.0]
[1757381607571,0.001,4288.3,4287.6,2.33230711]
[1757381607783,0.001,4288.3,4288.0,2.63018955]